Cogmind - Beta 15 @@@ ROGUE MODE // 2025.06.05 @ 09:31:21 Player: Stick8ug Result: Destroyed by S-10 Pest with Light Assault Rifle Performance ------------- Evolutions (2) 1000 Regions Visited (4) 800 Robots Destroyed (15) 75 Value Destroyed (381) 381 Prototype IDs (0) 0 Alien Tech Used (0) 0 Bonus (0) 0 TOTAL SCORE: 2256 Bonus ------- None Cogmind --------- Core Integrity 0/550 Matter 282/300 Energy 250/250 System Corruption 3% Temperature Cool (0) Movement Core (450) Ox8 Location -8/Materials Parts ------- > --- POWER (1) -------- Ion Engine > --- PROPULSION (4) --- (None) > --- UTILITY (3) ------ Large Storage Unit Machine Analyzer > --- WEAPON (3) ------- (None) > --- INVENTORY (15) --- Improved Power Shielding Light Armor Plating Mining Laser Peak State ------------ > --- POWER ------------ Ion Engine > --- PROPULSION ------- Light Treads Light Treads Light Treads Aluminum Leg > --- UTILITY ---------- Large Storage Unit Machine Analyzer System Shield > --- WEAPON ----------- Particle Cannon Heavy Assault Rifle Heavy Assault Rifle > --- INVENTORY -------- Aluminum Leg Improved Power Shielding Light Armor Plating Mining Laser [Rating: 18] Favorites ----------- Power Ion Engine Engine Ion Engine Propulsion Light Treads Treads Light Treads Leg Aluminum Leg Utility Improved Terrain Scanner Device Improved Terrain Scanner Storage Small Storage Unit Processor Machine Analyzer Hackware System Shield Protection Light Armor Plating Weapon Light Cannon Energy Gun EM Pulse Gun Energy Cannon Particle Cannon Ballistic Gun Heavy Assault Rifle Ballistic Cannon Light Cannon Build | -11 -10 -10 -9 -8 ------- Run | Yrd Mat Min Mat Mat Slots Evolved 4 | . . . 2 2 Power . | . . . . . Propulsion 2 | . . . 1 1 Utility 1 | . . . 1 . Weapon 1 | . . . . 1 Parts Attached 28 | 7 . 4 3 14 Power 3 | 1 . . . 2 Engine 3 | 1 . . . 2 Core . | . . . . . Reactor . | . . . . . Propulsion 10 | 2 . 2 1 5 Treads 7 | 2 . 2 1 2 Leg 3 | . . . . 3 Wheel . | . . . . . Hover . | . . . . . Flight . | . . . . . Utility 6 | 2 . . 2 2 Device 1 | 1 . . . . Storage 2 | 1 . . 1 . Processor 1 | . . . . 1 Hackware 1 | . . . . 1 Protection 1 | . . . 1 . Artifact . | . . . . . Weapon 9 | 2 . 2 . 5 Energy Gun 4 | 2 . . . 2 Energy Cannon 1 | . . . . 1 Ballistic Gun 2 | . . . . 2 Ballistic Cannon 2 | . . 2 . . Launcher . | . . . . . Special Weapon . | . . . . . Impact Weapon . | . . . . . Slashing Weapon . | . . . . . Piercing Weapon . | . . . . . Special Melee Weapon . | . . . . . Unidentified Prototypes . | . . . . . Corrupted Parts 1 | . . . . 1 System Corruption 3 | . . . . 3 Parts Lost 19 | . . . 4 15 Power 2 | . . . . 2 Propulsion 8 | . . . 2 6 Utility 3 | . . . 2 1 Weapon 6 | . . . . 6 Highest Loss Streak 11 | . . . 4 11 To Critical Strikes 1 | . . . . 1 Average Backups 5 | 3 5 6 8 3 Power . | . 1 1 1 . Propulsion 2 | 1 2 3 4 . Utility . | . . . . . Weapon 1 | 1 2 2 2 1 Tool/Special . | . . . . . Unused Backups 3 | . . . . 3 Power . | . . . . . Propulsion . | . . . . . Utility 2 | . . . . 2 Weapon 1 | . . . . 1 Tool/Special . | . . . . . Average Slot Usage (%) 89 | . 100 99 91 69 Engine 10 | . 14 14 11 5 Treads 24 | . 28 28 33 10 Leg 4 | . . . . 14 Device 9 | . 14 14 11 . Storage 11 | . 14 14 11 9 Processor 1 | . . . . 5 Hackware 1 | . . . . 6 Energy Gun 12 | . 28 18 . 5 Energy Cannon 1 | . . . . 5 Ballistic Cannon 8 | . . 9 21 2 Peak Build Rating 18 | 9 9 9 12 18 Average Rating 9 | 6 9 8 10 12 On Entrance 6 | . 9 9 9 5 Naked Turns . | . . . . . Heaviest Build 35 | 15 15 17 35 35 Greatest Support 60 | 40 40 40 60 60 Greatest Overweight (x) 8 | . . . . 8 Average Overweight (x) . | . . . . 1 Largest Inventory Capacity 15 | 8 8 8 15 15 Average Capacity 10 | 7 8 8 13 15 Most Carried 9 | 5 6 8 9 8 Average Carried 5 | 3 5 6 8 3 Final Capacity 15 | 8 8 8 15 15 Final Carried 8 | 5 6 8 8 3 Class Distribution -------------------- 77% | Mutant 9% | Scavenger-Mutant 5% | Gunner 4% | Skirmisher Dominant Class ---------------- Mutant | -10/Materials Mutant | -10/Mines Mutant | -9/Materials Mutant | -8/Materials Resources | -11 -10 -10 -9 -8 ----------- Run | Yrd Mat Min Mat Mat Matter Collected 586 | 242 28 40 124 152 Remotely . | . . . . . Salvage Created 506 | 87 84 . 82 253 Parts 39 | 8 5 . 12 14 Haulers Intercepted . | . . . . . Recyclers Shooed 1 | 1 . . . . Parts Field Recycled . | . . . . . Retrieved Matter . | . . . . . Parts Self-Destructed . | . . . . . Prevented . | . . . . . Kills | -11 -10 -10 -9 -8 ------- Run | Yrd Mat Min Mat Mat Combat Hostiles Destroyed 13 | . 2 . 5 6 Guns 3 | . 2 . . 1 Cannons 8 | . . . 5 3 AOE 2 | . . . . 2 Classes Destroyed 5 | 2 1 . 2 . Tunneler 1 | 1 . . . . Recycler 1 | 1 . . . . Swarmer 6 | . . . 4 2 Grunt 3 | . 2 . . 1 Sentry 4 | . . . 1 3 Best Kill Streak 4 | 1 2 . 4 3 Combat Bots Only 4 | . 2 . 4 3 Max Kills in Single Turn 1 | 1 1 . 1 1 Gunslinging . | . . . . . Exploded 1 | . . . . 1 Melee . | . . . . . Uniques/NPCs Destroyed . | . . . . . Combat | -11 -10 -10 -9 -8 -------- Run | Yrd Mat Min Mat Mat Hostile Shots Fired 406 | . 16 6 134 250 Missed 114 | . 2 3 42 67 Hits 292 | . 14 3 92 183 Projectile 292 | . 14 3 92 183 Critical Strikes 7 | . . . 1 6 Damage Taken 3101 | . 159 48 894 2000 Core 696 | . 12 . 133 551 Absorbed by Shields . | . . . . . Regen/Repaired (Parts) 49 | . . . . 49 Core Remaining (%) 87 | 100 . 95 66 . Volleys Fired 49 | 9 6 1 11 22 Largest 3 | 2 2 2 2 3 Hottest 138 | 90 90 90 60 138 Shots Fired 102 | 18 12 2 22 48 Gun 62 | 18 12 2 . 30 Cannon 40 | . . . 22 18 Launcher . | . . . . . Special . | . . . . . Kinetic 41 | . . . 22 19 Thermal 35 | 9 6 1 . 19 Explosive . | . . . . . Electromagnetic 26 | 9 6 1 . 10 Robot Hit Streak 18 | 3 3 1 2 18 Robot Miss Streak 4 | 2 1 1 4 3 Penetration Max . | . . . . . Secondary Targets 1 | . 1 . . . Max Gunslinging Chain 1 | . 1 . . . Shots Hit Robots 56 | 9 7 1 8 31 Core Hits 26 | 3 4 1 6 12 Critical Kills . | . . . . . Critical Parts Destroyed . | . . . . . Critical Strikes 1 | . . . . 1 Blast 1 | . . . . 1 Melee Attacks . | . . . . . Impact . | . . . . . Slashing . | . . . . . Piercing . | . . . . . Sneak Attacks . | . . . . . Combat Hostiles . | . . . . . Follow-up Attacks . | . . . . . Damage Inflicted 1070 | 116 115 13 142 684 Guns 544 | 116 115 12 . 301 Cannons 389 | . . . 141 248 Explosions 133 | . . . . 133 Melee . | . . . . . Ramming 4 | . . 1 1 2 Kinetic 334 | . . . 141 193 Thermal 523 | 49 63 12 . 399 Explosive . | . . . . . Electromagnetic 209 | 67 52 . . 90 Impact . | . . . . . Slashing . | . . . . . Piercing . | . . . . . Highest Corruption 3 | . . . . 3 Average Corruption 3 | . . . . 3 Corruption Purged . | . . . . . Corruption Blocked . | . . . . . Effects 4 | . . . . 4 Matter Fused 1 | . . . . 1 Heat Flow Errors 2 | . . . . 2 Parts Rejected 1 | . . . . 1 Overload Shots . | . . . . . Overflow Damage 23 | . . . . 23 Projectiles . | . . . . . Explosions 23 | . . . . 23 Melee . | . . . . . Knockbacks . | . . . . . Impact . | . . . . . Kinetic . | . . . . . Secondary . | . . . . . Self-Inflicted Damage 31 | . . . . 31 Shots 1 | . . . . 1 Rammed 5 | . . 1 1 3 Targets Rammed 5 | . . 1 1 3 Kicked . | . . . . . Crushed . | . . . . . Highest Temperature 246 | 132 246 30 7 168 Average Temperature 76 | 55 126 17 5 73 Received Heat Transfer 816 | . 84 9 282 441 Siege Activations . | . . . . . Martial Activations . | . . . . . Shielding Activations . | . . . . . Robots Disrupted . | . . . . . Combat Hostiles . | . . . . . Robots Corrupted . | . . . . . Combat Hostiles . | . . . . . Parts Fried . | . . . . . Impact Corruptions . | . . . . . Robots Melted . | . . . . . Combat Hostiles . | . . . . . Parts Melted 2 | . . . . 2 Heat Transferred 1051 | 148 185 37 . 681 Parts Sabotaged . | . . . . . Parts Stolen . | . . . . . Parts Stripped . | . . . . . Power Chain Reactions 2 | . . . . 2 Alert | -11 -10 -10 -9 -8 ------- Run | Yrd Mat Min Mat Mat Maximum Alert Level . | . . . . . Low Security (%) 100 | 100 100 100 100 100 Level 1 . | . . . . . Level 2 . | . . . . . Level 3 . | . . . . . Level 4 . | . . . . . Level 5 . | . . . . . High Security . | . . . . . Max Security . | . . . . . Peak Influence 90 | 5 50 . 90 84 Initial . | . . . . . Average 17 | . 8 . 38 29 Influence Increases 493 | 10 64 . 150 269 Destroy 0b10 Robot/C 260 | . 40 . 100 120 Destroy 0b10 Robot/NC 10 | 10 . . . . Destroy Leader 70 | . 10 . 20 40 Successful Hack 22 | . 14 . . 8 Disable Machine 15 | . . . . 15 Destroy Structure 11 | . . . . 11 Partial Spotted 15 | . . . . 15 Lose Combat Pursuer 90 | . . . 30 60 Influence Decreases 478 | 10 64 . 150 254 Time Decay 339 | 10 64 . 130 135 Lost Part 139 | . . . 20 119 Squads Dispatched 5 | . 1 . 1 3 Investigation 1 | . 1 . . . Extermination . | . . . . . Reinforcement 1 | . . . 1 . Assault . | . . . . . Garrison 3 | . . . . 3 Intercept . | . . . . . Searches Triggered . | . . . . . Construction Impeded . | . . . . . Haulers Reinforced . | . . . . . Active Scanning Responses . | . . . . . Cargo Convoy Interrupts . | . . . . . Stealth | -11 -10 -10 -9 -8 --------- Run | Yrd Mat Min Mat Mat Distress Signals 2 | . 1 . . 1 Communications Jammed . | . . . . . Distress Signals . | . . . . . Times Spotted 48 | . 9 2 18 19 Peak Tracking Total 9 | . 5 2 9 7 Tactical Retreats 4 | . . . 1 3 Traps | -11 -10 -10 -9 -8 ------- Run | Yrd Mat Min Mat Mat Traps Triggered 2 | . 1 . 1 . Indirectly . | . . . . . Trap Hack Attempts . | . . . . . Triggered . | . . . . . Disarmed . | . . . . . Reprogrammed . | . . . . . Reused . | . . . . . Traps Extracted . | . . . . . Installed . | . . . . . Triggered . | . . . . . Machines | -11 -10 -10 -9 -8 ---------- Run | Yrd Mat Min Mat Mat Machines Disabled 2 | . . 1 . 1 Max in Single Turn 1 | . . 1 . 1 Machines Repaired . | . . . . . Machines Dismantled . | . . . . . Machines Sabotaged . | . . . . . Overloaded Fab Kills . | . . . . . Hacking | -11 -10 -10 -9 -8 --------- Run | Yrd Mat Min Mat Mat Machines Accessed 6 | . 2 . 2 2 Terminals 4 | . 1 . 2 1 Fabricators . | . . . . . Repair Stations 1 | . . . . 1 Recycling Units 1 | . 1 . . . Scanalyzers . | . . . . . Garrison Access . | . . . . . Total Hacks 11 | . 3 . 3 5 Successful 5 | . 2 . . 3 Failed 6 | . 1 . 3 2 Catastrophic 1 | . . . . 1 Database Lockouts . | . . . . . Manual 6 | . . . 3 3 Terminals 7 | . 1 . 3 3 Fabricators . | . . . . . Repair Stations 2 | . . . . 2 Recycling Units 2 | . 2 . . . Scanalyzers . | . . . . . Garrison Access . | . . . . . Terminal Hacks 2 | . 1 . . 1 Locate Traps 1 | . 1 . . . Registered Components 1 | . . . . 1 Fabricator Hacks . | . . . . . Repair Station Hacks 2 | . . . . 2 Scan Component 1 | . . . . 1 Repair 1 | . . . . 1 Recycling Unit Hacks 1 | . 1 . . . Report Inventory 1 | . 1 . . . Scanalyzer . | . . . . . Garrison Access Hacks . | . . . . . Unauthorized Hacks . | . . . . . Terminals . | . . . . . Fabricators . | . . . . . Repair Stations . | . . . . . Recycling Units . | . . . . . Scanalyzers . | . . . . . Garrison Access . | . . . . . Data Cores Recovered . | . . . . . Used . | . . . . . Hacking Detections 4 | . 1 . 2 1 Full Trace Events . | . . . . . Feedback Events . | . . . . . Feedback Blocked . | . . . . . Robot Schematics Acquired . | . . . . . Robots Built . | . . . . . Authchips . | . . . . . Time . | . . . . . Total Robot Build Rating . | . . . . . Part Schematics Acquired . | . . . . . Parts Built . | . . . . . Authchips . | . . . . . Time . | . . . . . Total Part Build Rating . | . . . . . Parts Repaired 1 | . . . . 1 Time 26 | . . . . 26 Parts Recycled . | . . . . . Recycled Matter . | . . . . . Retrieved Matter . | . . . . . Retrieved Components . | . . . . . Parts Scanalyzed . | . . . . . Part Schematics Acquired . | . . . . . Parts Damaged . | . . . . . Bothacking | -11 -10 -10 -9 -8 ------------ Run | Yrd Mat Min Mat Mat Used RIF Installer . | . . . . . Robots Hacked . | . . . . . Non-combat . | . . . . . Combat . | . . . . . Robot Hacks Applied . | . . . . . Relay Couplers Released . | . . . . . Fabnet Peak Effective % . | . . . . . Robots Rewired . | . . . . . Allies Hacked . | . . . . . Hacks Repelled . | . . . . . Allies | -11 -10 -10 -9 -8 -------- Run | Yrd Mat Min Mat Mat Total Allies . | . . . . . Largest Group . | . . . . . Highest-Rated Group . | . . . . . Highest-Rated Ally . | . . . . . Total Orders . | . . . . . Ally Attacks . | . . . . . Total Damage . | . . . . . Kills . | . . . . . Allies Corrupted . | . . . . . Allies Melted . | . . . . . Intel | -11 -10 -10 -9 -8 ------- Run | Yrd Mat Min Mat Mat Active Infowar (turns) 1343 | 45 290 400 336 272 Terrain 1071 | 45 290 400 336 . Machine Analysis 272 | . . . . 272 Robot Analysis Total . | . . . . . Derelict Logs Recovered 1 | . . 1 . . Drone Launches . | . . . . . Drone Recoveries . | . . . . . Exploration | -11 -10 -10 -9 -8 ------------- Run | Yrd Mat Min Mat Mat Turns Passed 1551 | 116 290 400 336 409 Spaces Moved 793 | 49 170 236 181 157 Core 18 | 4 . . . 14 Treads 680 | 45 170 236 181 48 Legs 95 | . . . . 95 Wheels . | . . . . . Hover . | . . . . . Flight . | . . . . . Fastest Speed 50 | 50 160 160 160 120 Average Speed 165 | 151 160 160 160 192 Slowest Speed 450 | 160 160 160 160 450 Overloaded Moves . | . . . . . Propulsion Burnouts . | . . . . . Robots Hopped . | . . . . . Potential Cave-ins . | . . . . . Cave-ins Triggered . | . . . . . Exploration Rate (%) 25 | 5 32 51 27 13 Regions Visited 4 Branch Regions 1 Pre-discovered Areas 1 | . . 1 . . Known Exits Taken . | . . . . . Unknown Exits Taken 4 | 1 1 1 1 . Scrap Searched 1 | . . 1 . . Spaces Dug . | . . . . . Terrain Destroyed 9 | . . . . 9 Melee . | . . . . . Projectile . | . . . . . AOE 9 | . . . . 9 Terrain Rammed . | . . . . . Walls Destroyed . | . . . . . Machines Disabled . | . . . . . Actions | -11 -10 -10 -9 -8 --------- Run | Yrd Mat Min Mat Mat Total 918 | 71 176 255 204 212 Wait 24 | . . 12 5 7 Move 789 | 48 169 235 180 157 Hop . | . . . . . Pick Up 12 | 7 1 . 1 3 Fast Attach 16 | 5 . 2 2 7 Attach 14 | 2 . . 2 10 Detach 1 | . . . . 1 Swap 4 | . . 2 1 1 Drop 4 | . . 2 1 1 Fire 49 | 9 6 1 11 22 Melee . | . . . . . Ram 3 | . . . . 3 Kick . | . . . . . Crush 2 | . . 1 1 . Escape Stasis . | . . . . . Rewire . | . . . . . Trap . | . . . . . Miscellaneous . | . . . . . Route ------- -11/Scrapyard -10/Materials -10/Mines (discovered 2 exits: *Mat x2) -9/Materials -8/Materials History --------- Turn | Location | Event 10 | -11/Scrapyard | Discovered new exit (range 15) 117 | -11/Scrapyard | Entered Materials 308 | -10/Materials | Build established: Mutant 384 | -10/Materials | Discovered new exit (range 15) 407 | -10/Materials | Entered Mines 451 | -10/Mines | Found a damaged Exp. Sensor Array with a note attached 513 | -10/Mines | Learned location of Storage (-7) 520 | -10/Mines | Discovered new exit (range 5) 596 | -10/Mines | Discovered new exit (range 7) 609 | -10/Mines | Learned Materials emergency access door positions 641 | -10/Mines | Joined a pair of Derelicts in attacking an 0b10 outpost 807 | -10/Mines | Entered Materials 807 | -9/Materials | Evolved 2 slots: Propulsion x1, Utility x1 1118 | -9/Materials | Discovered new exit (range 16) 1143 | -9/Materials | Entered another Materials area 1143 | -8/Materials | Evolved 2 slots: Propulsion x1, Weapon x1 1174 | -8/Materials | Lost 4 parts (2n2u) 1214 | -8/Materials | Repaired Ion Engine? 1236 | -8/Materials | Garrison activated, responded to threat 1510 | -8/Materials | Core integrity fell below 50% 1521 | -8/Materials | Lost 11 parts (1p4n1u5w) 1528 | -8/Materials | Core integrity fell below 20% 1552 | -8/Materials | Destroyed by S-10 Pest with Light Assault Rifle Last Messages --------------- Ion Engine destroyed. System corrupted: Matter fused (-10). S-10 Pest destroyed. Lgt. Treads destroyed. Critical hit (Destroy). Hvy. Laser destroyed. Acquired 19 matter. Aluminum Leg destroyed. System Shield destroyed. S-10 Pest destroyed. System corrupted: Heat flow error (+199). K-01 Serf collects debris. Slammed into K-01 Serf. >> Machine Analyzer network decryption results: Recycling Unit x1 K-01 Serf collects debris. Slammed into S-10 Pest. Acquired Ion Engine. Slammed into S-10 Pest. K-01 Serf cleans the Nuclear Reactor. Map ----- +----------------------------------------------------+ | ????????????????????????????# "" " # #????????? | | ????????????????????????????# """" # #????????? | | ????????????????????????????# !*"!" # #????????? | | ????????????????????????????# %= % # #????????? | | ????????????????????????????######/### +????????? | | ????????????????????????????????# # ?""????? | | ????????????????????????????????# # "G?????? | | ???????????????????????????????## #### #? ""????? | | ???????????????????????????????## ##?# #? ?????? | | ??????????????????????????#######+#### #?? ?????? | | ??????????????????????????# ## #??##????? | | ???????!??????????????????#""" = = ## ##???????? | | ??????????????????????????#"R # #???????? | | ??????????????????????????#""" ""%%+ #???????? | | ??????????????????????????# ""[ # +???????? | | ?????????????????????????## "" # #???????? | | ?????????????????????????# ## ##???????? | | ?????????????????????????## ##% #????????? | | ???????????????????##############+#### #????????? | | ???????????????????# / #????????? | | ???????????????????# """ """ # #????????? | | ???????????????????# """ "R" # #+#####????????? | | ???????????????????# """ " " # # ???????????? | | ???????????????????# # # """ """??????? | | ????????????????###########Y##### # "Y """??????? | | ?????????? @s # """ """??????? | | ????=????? s # ??????? | | ?????????? k k # [ ??????? | | ??????????? #+########## # ? !?????? | | ??????????? ??#??????????# # ??? #????? | | ???????????? ??????"""???????# ####?????##????? | | ????????????????????"Y????????# #####??????????? | | ????????????????????"""???????# #??????????? | | ??????????????????????????????# = #??????????? | | ??????????????????????????????# #??????????? | | ??????????????????????????????####+## #??????????? | | ????????????????????????????????? ? #??????????? | | ?????????????????????????????????[] ? #??????????? | | ????????????????????????????????[[] # #??????????? | | ????????????????????????????????[[ #?#??????????? | | ??????????????????????????????? #????????????? | | ???????????????????????????????[ #????????????? | | ??????????????????????????????#######????????????? | | ?????????????????????????????????????????????????? | | ?????????????????????????????????????????????????? | | ?????????????????????????????????????????????????? | | ?????????????????????????????????????????????????? | | ?????????????????????????????????????????????????? | | ?????????????????????????????????????????????????? | | ?????????????????????????????????????????????????? | +----------------------------------------------------+ Best States ------------- Heat Dissipation 31 Energy Generation 12 Energy Capacity 265 Matter Stores 300 Matter Capacity 300 Sight Range 16 Terrain Scan Range 16 Terrain Scan Density 10 Armor Coverage 150 Evasion (%) 55 Recoil Reduction 3 Defensive Hacking 10 Item Schematics ----------------- None Robot Schematics ------------------ None Fabricated ------------ Nothing Repaired ---------- Ion Engine | 18% | -8/Materials Alien Tech Used ----------------- None Achievements -------------- None Challenges ------------ None Game ------ Seed MetaEncryptedSource Manual? 0 Play Time 00:24:56 Cumulative 7.4 hours Start 2025.06.05 @ 09:05:06 End 2025.06.05 @ 09:31:21 Sessions 1 Manual Loads 0 Difficulty Rogue Special Mode None Game No. 18 Rogue 18 Adventurer 0 Explorer 0 Win Type - Total 0 Types 0/0/0/0/0/0/0/0/0/0 Lore% 2 Gallery% 11 Achievement% 10 Wizard Run 0 Options --------- Layout 1 ASCII 0 Keyboard 0 Movement Arrows Keybinds 0 Fullscreen 1 Font 24/Smallcaps Map View 50x35 Zoom Use 0% Tactical HUD 0 Map Filters NONE Filters NONE Steam 1 RUN: 7223e560-87d9-4ff9-89f9-f3e0458d374d